[Event "Live Chess"]
[Site "Chess.com"]
[Date "2024.06.02"]
[Round "-"]
[White "Queensandpawns"]
[Black "Tatarinov_Maxim"]
[Result "0-1"]
[WhiteElo "2274"]
[BlackElo "2298"]
[TimeControl "300"]
[EndTime "2:41:18 PDT"]
[Termination "Tatarinov_Maxim won by resignation"]

1. e4 {[%clk 0:04:58.8]} 1... c5 {[%clk 0:04:58.4]} 2. Nf3 {[%clk 0:04:57.6]}
2... Nc6 {[%clk 0:04:57.6]} 3. d4 {[%clk 0:04:55.1]} 3... cxd4 {[%clk
0:04:57.5]} 4. c3 {[%clk 0:04:54.8]} 4... dxc3 {[%clk 0:04:56]} 5. Bc4 {[%clk
0:04:54.3]} 5... e6 {[%clk 0:04:55]} 6. O-O {[%clk 0:04:54.1]} 6... d6 {[%clk
0:04:54.4]} 7. Nxc3 {[%clk 0:04:53.7]} 7... Nf6 {[%clk 0:04:53.6]} 8. Re1 {[%clk
0:04:50.9]} 8... Be7 {[%clk 0:04:52.5]} 9. Bg5 {[%clk 0:04:50.4]} 9... O-O
{[%clk 0:04:50.9]} 10. Qd2 {[%clk 0:04:50.1]} 10... a6 {[%clk 0:04:37.8]} 11.
Rad1 {[%clk 0:04:48.7]} 11... Ne5 {[%clk 0:04:35.5]} 12. Nxe5 {[%clk 0:04:45.4]}
12... dxe5 {[%clk 0:04:35.4]} 13. Qe3 {[%clk 0:04:45.3]} 13... Qc7 {[%clk
0:04:31.7]} 14. Bb3 {[%clk 0:04:44.6]} 14... Ng4 {[%clk 0:04:18.6]} 15. Qc1
{[%clk 0:04:34.3]} 15... Bxg5 {[%clk 0:04:17.1]} 16. Qxg5 {[%clk 0:04:34.2]}
16... Nf6 {[%clk 0:04:16.6]} 17. f4 {[%clk 0:04:27.3]} 17... h6 {[%clk
0:04:01.8]} 18. Qh4 {[%clk 0:04:17.8]} 18... exf4 {[%clk 0:03:59.2]} 19. e5
{[%clk 0:04:17]} 19... Nh7 {[%clk 0:03:52.8]} 20. Ne4 {[%clk 0:04:06.9]} 20...
Qxe5 {[%clk 0:03:44.3]} 21. Bc2 {[%clk 0:04:04.8]} 21... Qc7 {[%clk 0:03:32.1]}
22. Bb1 {[%clk 0:03:54.7]} 22... Ng5 {[%clk 0:03:24.5]} 23. Kh1 {[%clk
0:03:24.3]} 23... Nxe4 {[%clk 0:03:21.3]} 24. Bxe4 {[%clk 0:03:24.2]} 24... Bd7
{[%clk 0:03:12.1]} 25. Rc1 {[%clk 0:03:03.7]} 25... Bc6 {[%clk 0:03:09]} 26. Bb1
{[%clk 0:02:37.1]} 26... Rad8 {[%clk 0:02:58.1]} 27. Rc5 {[%clk 0:02:31.3]}
27... Rd2 {[%clk 0:02:52.2]} 28. Rg5 {[%clk 0:02:27.4]} 28... f3 {[%clk
0:02:24.2]} 29. Qg3 {[%clk 0:01:23.3]} 29... fxg2+ {[%clk 0:02:19.9]} 30. Kg1
{[%clk 0:01:22]} 30... Qxg3 {[%clk 0:02:11.7]} 31. Rxg3 {[%clk 0:01:21.9]} 31...
Rxb2 {[%clk 0:02:06.8]} 0-1

[Event "Live Chess"]
[Site "Chess.com"]
[Date "2024.06.02"]
[Round "-"]
[White "dmitro74"]
[Black "elis06"]
[Result "0-1"]
[WhiteElo "1729"]
[BlackElo "2193"]
[TimeControl "300"]
[EndTime "2:41:24 PDT"]
[Termination "elis06 won on time"]

1. d4 {[%clk 0:04:57.8]} 1... d5 {[%clk 0:04:58.8]} 2. c4 {[%clk 0:04:56.8]}
2... e6 {[%clk 0:04:58.1]} 3. Nc3 {[%clk 0:04:56.2]} 3... Nf6 {[%clk 0:04:57.2]}
4. Bg5 {[%clk 0:04:55]} 4... Be7 {[%clk 0:04:56.1]} 5. Nf3 {[%clk 0:04:54.2]}
5... Nbd7 {[%clk 0:04:52.6]} 6. e3 {[%clk 0:04:52.7]} 6... c6 {[%clk 0:04:51.7]}
7. Bd3 {[%clk 0:04:51.2]} 7... O-O {[%clk 0:04:49.9]} 8. O-O {[%clk 0:04:50]}
8... a6 {[%clk 0:04:48.4]} 9. Rc1 {[%clk 0:04:47.4]} 9... h6 {[%clk 0:04:45.2]}
10. Bf4 {[%clk 0:04:45.9]} 10... dxc4 {[%clk 0:04:40.4]} 11. Bxc4 {[%clk
0:04:44]} 11... b5 {[%clk 0:04:39.5]} 12. Bd3 {[%clk 0:04:40.5]} 12... c5 {[%clk
0:04:38.2]} 13. b3 {[%clk 0:04:34.4]} 13... Bb7 {[%clk 0:04:36]} 14. Bb1 {[%clk
0:04:13.4]} 14... Rc8 {[%clk 0:04:29.8]} 15. Ne5 {[%clk 0:04:05.8]} 15... cxd4
{[%clk 0:04:13.1]} 16. exd4 {[%clk 0:03:59.1]} 16... Ba3 {[%clk 0:04:04.9]} 17.
Rc2 {[%clk 0:03:48.8]} 17... Bb4 {[%clk 0:04:02.7]} 18. Qd3 {[%clk 0:03:44.3]}
18... Bxc3 {[%clk 0:03:43]} 19. Rxc3 {[%clk 0:03:40.2]} 19... Rxc3 {[%clk
0:03:41.4]} 20. Qxc3 {[%clk 0:03:39.2]} 20... Nd5 {[%clk 0:03:39.3]} 21. Qd3
{[%clk 0:03:30.9]} 21... N7f6 {[%clk 0:03:37.8]} 22. Bg3 {[%clk 0:03:26.8]}
22... Nb4 {[%clk 0:03:27.3]} 23. Qe3 {[%clk 0:03:14.6]} 23... Qd5 {[%clk
0:03:19.5]} 24. f3 {[%clk 0:03:08.9]} 24... Rd8 {[%clk 0:03:16.4]} 25. Rd1
{[%clk 0:02:55.3]} 25... Nc6 {[%clk 0:02:57.7]} 26. Nxc6 {[%clk 0:02:39.4]}
26... Bxc6 {[%clk 0:02:45.4]} 27. Be5 {[%clk 0:02:37.1]} 27... Ne8 {[%clk
0:02:28.9]} 28. Be4 {[%clk 0:02:33.5]} 28... Qd7 {[%clk 0:02:26.6]} 29. Bc2
{[%clk 0:02:10.4]} 29... Bd5 {[%clk 0:02:16.4]} 30. Qd3 {[%clk 0:02:06.1]} 30...
f5 {[%clk 0:02:14.7]} 31. g4 {[%clk 0:01:50.5]} 31... g6 {[%clk 0:01:50]} 32.
Qe3 {[%clk 0:01:32.6]} 32... Kh7 {[%clk 0:01:35.6]} 33. Kf2 {[%clk 0:01:26.9]}
33... Qf7 {[%clk 0:01:30.2]} 34. gxf5 {[%clk 0:01:05.8]} 34... exf5 {[%clk
0:01:26.7]} 35. Rh1 {[%clk 0:01:01]} 35... Rc8 {[%clk 0:01:19.7]} 36. Qd2 {[%clk
0:00:49.5]} 36... Nf6 {[%clk 0:01:12.3]} 37. Rg1 {[%clk 0:00:45.2]} 37... Nd7
{[%clk 0:00:47.2]} 38. Bf4 {[%clk 0:00:41.5]} 38... g5 {[%clk 0:00:35.9]} 39.
Bxg5 {[%clk 0:00:29.7]} 39... Rg8 {[%clk 0:00:28.2]} 40. Bxh6 {[%clk 0:00:20.7]}
40... Rxg1 {[%clk 0:00:26.7]} 41. Kxg1 {[%clk 0:00:19.4]} 41... Qg6+ {[%clk
0:00:25.7]} 42. Kf2 {[%clk 0:00:18.1]} 42... Qxh6 {[%clk 0:00:24.2]} 43. Bxf5+
{[%clk 0:00:15.5]} 43... Kg7 {[%clk 0:00:23]} 44. Qxh6+ {[%clk 0:00:14]} 44...
Kxh6 {[%clk 0:00:22.5]} 45. Bxd7 {[%clk 0:00:13.3]} 45... Kg5 {[%clk 0:00:21]}
46. Kg3 {[%clk 0:00:12]} 46... b4 {[%clk 0:00:19.8]} 47. h4+ {[%clk 0:00:10.8]}
47... Kf6 {[%clk 0:00:19.2]} 48. Bc8 {[%clk 0:00:09.5]} 48... a5 {[%clk
0:00:18.6]} 49. h5 {[%clk 0:00:07.2]} 49... Kg5 {[%clk 0:00:17.7]} 50. Bg4
{[%clk 0:00:05.7]} 50... Kh6 {[%clk 0:00:16.8]} 51. f4 {[%clk 0:00:05.1]} 51...
Be4 {[%clk 0:00:15.8]} 52. Kh4 {[%clk 0:00:01.1]} 52... Bb1 {[%clk 0:00:14.7]}
0-1

[Event "Live Chess"]
[Site "Chess.com"]
[Date "2024.06.02"]
[Round "-"]
[White "TigerTank70"]
[Black "PaulHumphreys"]
[Result "1-0"]
[WhiteElo "2234"]
[BlackElo "1409"]
[TimeControl "300"]
[EndTime "2:41:29 PDT"]
[Termination "TigerTank70 won on time"]

1. e4 {[%clk 0:04:58.1]} 1... e6 {[%clk 0:04:57.5]} 2. d4 {[%clk 0:04:57.2]}
2... d5 {[%clk 0:04:56.8]} 3. e5 {[%clk 0:04:55.7]} 3... c5 {[%clk 0:04:56]} 4.
c3 {[%clk 0:04:55.4]} 4... Nc6 {[%clk 0:04:54.9]} 5. Nf3 {[%clk 0:04:54.9]} 5...
Bd7 {[%clk 0:04:52.4]} 6. Be2 {[%clk 0:04:51.9]} 6... Nge7 {[%clk 0:04:51]} 7.
O-O {[%clk 0:04:50.2]} 7... Nf5 {[%clk 0:04:50]} 8. Be3 {[%clk 0:04:44.8]} 8...
Rc8 {[%clk 0:04:37.1]} 9. dxc5 {[%clk 0:04:41.6]} 9... Nxe3 {[%clk 0:04:29.9]}
10. fxe3 {[%clk 0:04:41.5]} 10... Bxc5 {[%clk 0:04:28]} 11. Nd4 {[%clk
0:04:38.2]} 11... O-O {[%clk 0:04:22.5]} 12. b4 {[%clk 0:04:35.4]} 12... Be7
{[%clk 0:04:14.3]} 13. Nd2 {[%clk 0:04:29.8]} 13... Nxe5 {[%clk 0:04:12.2]} 14.
N2f3 {[%clk 0:04:26.7]} 14... Nxf3+ {[%clk 0:04:05.1]} 15. Rxf3 {[%clk
0:04:26.6]} 15... Rxc3 {[%clk 0:04:01.5]} 16. Qd2 {[%clk 0:04:20]} 16... Bxb4
{[%clk 0:03:53.6]} 17. a3 {[%clk 0:04:15.9]} 17... Ba5 {[%clk 0:03:45.5]} 18.
Raf1 {[%clk 0:04:10.1]} 18... Rxa3 {[%clk 0:03:14.1]} 19. Qb2 {[%clk 0:04:00.4]}
19... Rc3 {[%clk 0:02:35]} 20. Qxb7 {[%clk 0:03:50.2]} 20... Qc7 {[%clk
0:02:14.1]} 21. Qb1 {[%clk 0:03:34.1]} 21... Rxe3 {[%clk 0:01:56.3]} 22. Rxe3
{[%clk 0:03:26]} 22... Bb6 {[%clk 0:01:41]} 23. Rh3 {[%clk 0:03:17.7]} 23...
Bxd4+ {[%clk 0:01:32.8]} 24. Kh1 {[%clk 0:03:17.4]} 24... g6 {[%clk 0:01:23.2]}
25. Qd3 {[%clk 0:03:14.2]} 25... Bg7 {[%clk 0:01:10.1]} 26. Rhf3 {[%clk
0:03:10.1]} 26... Bc6 {[%clk 0:00:59.4]} 27. Rc1 {[%clk 0:03:01.2]} 27... e5
{[%clk 0:00:48.7]} 28. Qc2 {[%clk 0:02:56]} 28... e4 {[%clk 0:00:36.9]} 29. Rb3
{[%clk 0:02:43.5]} 29... Rc8 {[%clk 0:00:30]} 30. Bb5 {[%clk 0:02:41.3]} 30...
e3 {[%clk 0:00:16.6]} 31. Rxe3 {[%clk 0:02:29.1]} 31... Bd4 {[%clk 0:00:12.9]}
32. Rd3 {[%clk 0:02:24.1]} 32... Be5 {[%clk 0:00:07.7]} 33. Bxc6 {[%clk
0:02:21.5]} 33... Bxh2 {[%clk 0:00:03.8]} 34. Rh3 {[%clk 0:02:17.6]} 1-0

[Event "Live Chess"]
[Site "Chess.com"]
[Date "2024.06.02"]
[Round "-"]
[White "ameetghasi100"]
[Black "MagnersCarlsberg2870"]
[Result "1-0"]
[WhiteElo "2793"]
[BlackElo "1808"]
[TimeControl "300"]
[EndTime "2:41:30 PDT"]
[Termination "ameetghasi100 won by resignation"]

1. g3 {[%clk 0:04:58.6]} 1... h5 {[%clk 0:04:56.4]} 2. Bg2 {[%clk 0:04:58.5]}
2... h4 {[%clk 0:04:55.5]} 3. g4 {[%clk 0:04:57.2]} 3... d6 {[%clk 0:04:53]} 4.
h3 {[%clk 0:04:57.1]} 4... c6 {[%clk 0:04:50.3]} 5. d4 {[%clk 0:04:57]} 5... g6
{[%clk 0:04:43.3]} 6. c4 {[%clk 0:04:54.3]} 6... Bg7 {[%clk 0:04:41.7]} 7. g5
{[%clk 0:04:52.6]} 7... e5 {[%clk 0:04:31]} 8. dxe5 {[%clk 0:04:50.3]} 8... Bxe5
{[%clk 0:04:29.9]} 9. Nc3 {[%clk 0:04:48.3]} 9... Qa5 {[%clk 0:04:27.9]} 10. Nf3
{[%clk 0:04:46.3]} 10... Bxc3+ {[%clk 0:04:20.5]} 11. bxc3 {[%clk 0:04:46.2]}
11... Qxc3+ {[%clk 0:04:19.5]} 12. Bd2 {[%clk 0:04:45.8]} 12... Qxc4 {[%clk
0:04:18.5]} 13. O-O {[%clk 0:04:41.7]} 13... Bf5 {[%clk 0:04:12]} 14. e4 {[%clk
0:04:40.8]} 14... Be6 {[%clk 0:04:05.7]} 15. Bf4 {[%clk 0:04:37.9]} 15... Qxe4
{[%clk 0:04:00.8]} 16. Bxd6 {[%clk 0:04:34.8]} 16... Nd7 {[%clk 0:03:53.1]} 17.
Re1 {[%clk 0:04:28.1]} 17... Qc4 {[%clk 0:03:48.8]} 18. Nd4 {[%clk 0:04:05.2]}
18... O-O-O {[%clk 0:03:38.6]} 19. Rc1 {[%clk 0:04:04.2]} 19... Qxa2 {[%clk
0:03:31.4]} 20. Nxc6 {[%clk 0:04:03.4]} 20... bxc6 {[%clk 0:03:29.8]} 21. Rxc6+
{[%clk 0:04:02.7]} 21... Kb7 {[%clk 0:03:29.1]} 22. Rc7+ {[%clk 0:04:02.3]}
22... Ka6 {[%clk 0:03:24]} 1-0

[Event "Live Chess"]
[Site "Chess.com"]
[Date "2024.06.02"]
[Round "-"]
[White "Trendle"]
[Black "KeithArkell"]
[Result "1-0"]
[WhiteElo "2635"]
[BlackElo "2411"]
[TimeControl "300"]
[EndTime "2:41:33 PDT"]
[Termination "Trendle won by resignation"]

1. d4 {[%clk 0:04:54.7]} 1... c5 {[%clk 0:04:58.6]} 2. d5 {[%clk 0:04:52.6]}
2... e5 {[%clk 0:04:58]} 3. Nc3 {[%clk 0:04:50.5]} 3... d6 {[%clk 0:04:57.4]} 4.
e4 {[%clk 0:04:48]} 4... Be7 {[%clk 0:04:56.8]} 5. g3 {[%clk 0:04:41]} 5... a6
{[%clk 0:04:53.5]} 6. a4 {[%clk 0:04:39.4]} 6... Nd7 {[%clk 0:04:49.9]} 7. Nf3
{[%clk 0:04:35.1]} 7... Ngf6 {[%clk 0:04:47.3]} 8. Bg2 {[%clk 0:04:33.6]} 8...
O-O {[%clk 0:04:46.5]} 9. O-O {[%clk 0:04:29.2]} 9... Rb8 {[%clk 0:04:45.7]} 10.
a5 {[%clk 0:04:26.5]} 10... b5 {[%clk 0:04:44.5]} 11. axb6 {[%clk 0:04:25.3]}
11... Nxb6 {[%clk 0:04:42.9]} 12. Qe2 {[%clk 0:04:15.1]} 12... Re8 {[%clk
0:04:39.1]} 13. h3 {[%clk 0:04:03.8]} 13... g6 {[%clk 0:04:38.4]} 14. Na4 {[%clk
0:03:35]} 14... Nxa4 {[%clk 0:04:35.7]} 15. Rxa4 {[%clk 0:03:34.9]} 15... Bd7
{[%clk 0:04:32.5]} 16. Ra3 {[%clk 0:03:29.6]} 16... a5 {[%clk 0:04:30]} 17. b3
{[%clk 0:03:23.9]} 17... a4 {[%clk 0:04:23]} 18. bxa4 {[%clk 0:03:19.7]} 18...
Rb4 {[%clk 0:04:22.1]} 19. c4 {[%clk 0:03:08.8]} 19... Rxa4 {[%clk 0:04:20.4]}
20. Rxa4 {[%clk 0:03:06.2]} 20... Bxa4 {[%clk 0:04:19.5]} 21. Bg5 {[%clk
0:03:00.4]} 21... Nd7 {[%clk 0:04:11.2]} 22. Bd2 {[%clk 0:02:50.6]} 22... Nf6
{[%clk 0:03:57.8]} 23. Ra1 {[%clk 0:02:46.4]} 23... Bd7 {[%clk 0:03:56.4]} 24.
Bc3 {[%clk 0:02:35.6]} 24... Qb6 {[%clk 0:03:53.3]} 25. Nd2 {[%clk 0:02:33.4]}
25... Nh5 {[%clk 0:03:43.7]} 26. Kh2 {[%clk 0:02:29.8]} 26... Ng7 {[%clk
0:03:38.7]} 27. f4 {[%clk 0:02:20.9]} 27... f6 {[%clk 0:03:36.1]} 28. Qd3 {[%clk
0:02:08.5]} 28... Qb7 {[%clk 0:03:34]} 29. Qc2 {[%clk 0:02:00]} 29... Ra8 {[%clk
0:03:32.7]} 30. Rb1 {[%clk 0:01:58.5]} 30... Qc8 {[%clk 0:03:29.1]} 31. Qb3
{[%clk 0:01:56.3]} 31... exf4 {[%clk 0:03:00.9]} 32. gxf4 {[%clk 0:01:54.8]}
32... Nh5 {[%clk 0:03:00]} 33. Rf1 {[%clk 0:01:49.1]} 33... Qa6 {[%clk
0:02:27.7]} 34. Ra1 {[%clk 0:01:42.2]} 34... Qc8 {[%clk 0:02:19.3]} 35. Rf1
{[%clk 0:01:33.1]} 35... Qa6 {[%clk 0:02:16.1]} 36. e5 {[%clk 0:01:31]} 36...
fxe5 {[%clk 0:01:38.6]} 37. fxe5 {[%clk 0:01:30.9]} 37... dxe5 {[%clk 0:01:38]}
38. Ra1 {[%clk 0:01:26.5]} 38... Qxa1 {[%clk 0:01:18.8]} 39. Bxa1 {[%clk
0:01:24.4]} 39... Rxa1 {[%clk 0:01:18.4]} 40. Qb8+ {[%clk 0:01:20]} 40... Bf8
{[%clk 0:01:01.8]} 41. Ne4 {[%clk 0:01:15.7]} 41... Bf5 {[%clk 0:00:56]} 42.
Qxe5 {[%clk 0:01:07.1]} 42... Ra2 {[%clk 0:00:50.2]} 43. Kg1 {[%clk 0:00:58.7]}
43... Bg7 {[%clk 0:00:25.8]} 44. Qe8+ {[%clk 0:00:56.4]} 44... Bf8 {[%clk
0:00:24]} 45. d6 {[%clk 0:00:53]} 45... Nf4 {[%clk 0:00:21.7]} 46. Nf2 {[%clk
0:00:34.9]} 46... Ne2+ {[%clk 0:00:19.7]} 47. Kh2 {[%clk 0:00:31.5]} 47... Kg7
{[%clk 0:00:16.6]} 48. Qe5+ {[%clk 0:00:29.6]} 48... Kf7 {[%clk 0:00:15.3]} 49.
Bd5+ {[%clk 0:00:27.2]} 1-0

[Event "Live Chess"]
[Site "Chess.com"]
[Date "2024.06.02"]
[Round "-"]
[White "AndyJWise"]
[Black "Ferrarifan27"]
[Result "0-1"]
[WhiteElo "1035"]
[BlackElo "2139"]
[TimeControl "300"]
[EndTime "2:41:35 PDT"]
[Termination "Ferrarifan27 won by resignation"]

1. d4 {[%clk 0:04:57.7]} 1... Nf6 {[%clk 0:04:54.3]} 2. c4 {[%clk 0:04:54.8]}
2... e6 {[%clk 0:04:52.1]} 3. Nf3 {[%clk 0:04:51.9]} 3... Bb4+ {[%clk
0:04:45.5]} 4. Bd2 {[%clk 0:04:47.4]} 4... Qe7 {[%clk 0:04:43.2]} 5. Qc2 {[%clk
0:04:42.8]} 5... Bxd2+ {[%clk 0:04:36.9]} 6. Nbxd2 {[%clk 0:04:40.9]} 6... b6
{[%clk 0:04:33.1]} 7. e4 {[%clk 0:04:37.4]} 7... d6 {[%clk 0:04:27]} 8. Be2
{[%clk 0:04:34.4]} 8... Bb7 {[%clk 0:04:23]} 9. O-O {[%clk 0:04:33.4]} 9... e5
{[%clk 0:04:18.1]} 10. d5 {[%clk 0:04:32]} 10... O-O {[%clk 0:04:13.9]} 11. b4
{[%clk 0:04:25.4]} 11... Nbd7 {[%clk 0:04:08]} 12. Rfb1 {[%clk 0:03:50.3]} 12...
a5 {[%clk 0:04:04.8]} 13. c5 {[%clk 0:03:42]} 13... bxc5 {[%clk 0:03:59.4]} 14.
bxc5 {[%clk 0:03:40.8]} 14... Nxc5 {[%clk 0:03:58.4]} 15. Bb5 {[%clk 0:03:16.1]}
15... Rfb8 {[%clk 0:03:54.9]} 16. Bc6 {[%clk 0:03:14.7]} 16... Bxc6 {[%clk
0:03:53.4]} 17. Rxb8+ {[%clk 0:03:11.7]} 17... Rxb8 {[%clk 0:03:52]} 18. dxc6
{[%clk 0:03:08.3]} 18... Qe8 {[%clk 0:03:47.2]} 19. Rb1 {[%clk 0:02:49.9]} 19...
Rxb1+ {[%clk 0:03:44.1]} 20. Qxb1 {[%clk 0:02:49.2]} 20... Qxc6 {[%clk 0:03:42]}
21. Qb8+ {[%clk 0:02:40.6]} 21... Ne8 {[%clk 0:03:40.1]} 22. g3 {[%clk
0:02:35.6]} 22... Kf8 {[%clk 0:03:37.9]} 23. Ng5 {[%clk 0:02:33.1]} 23... h6
{[%clk 0:03:32.9]} 24. Ngf3 {[%clk 0:02:14.7]} 24... Nxe4 {[%clk 0:03:28.8]} 25.
Nxe4 {[%clk 0:02:12.8]} 25... Qxe4 {[%clk 0:03:27.7]} 26. Kg2 {[%clk 0:02:12.1]}
26... g5 {[%clk 0:03:20.2]} 0-1

[Event "Live Chess"]
[Site "Chess.com"]
[Date "2024.06.02"]
[Round "-"]
[White "defenderalist"]
[Black "missedJariChance"]
[Result "0-1"]
[WhiteElo "1525"]
[BlackElo "1359"]
[TimeControl "300"]
[EndTime "2:42:07 PDT"]
[Termination "missedJariChance won by resignation"]

1. e4 {[%clk 0:04:59.3]} 1... c5 {[%clk 0:04:57.3]} 2. Nf3 {[%clk 0:04:57.8]}
2... e6 {[%clk 0:04:52.8]} 3. d4 {[%clk 0:04:56.9]} 3... cxd4 {[%clk 0:04:51.6]}
4. Nxd4 {[%clk 0:04:56]} 4... Nc6 {[%clk 0:04:50.5]} 5. Nc3 {[%clk 0:04:53.5]}
5... a6 {[%clk 0:04:47.7]} 6. a3 {[%clk 0:04:48.1]} 6... Qc7 {[%clk 0:04:46.2]}
7. Bd3 {[%clk 0:04:45.9]} 7... Nxd4 {[%clk 0:04:42.1]} 8. O-O {[%clk 0:04:44.3]}
8... Nc6 {[%clk 0:04:38.6]} 9. f4 {[%clk 0:04:43.2]} 9... Be7 {[%clk 0:04:30.3]}
10. f5 {[%clk 0:04:41.9]} 10... Nf6 {[%clk 0:04:26.9]} 11. Bf4 {[%clk
0:04:37.8]} 11... e5 {[%clk 0:04:21.8]} 12. Bg5 {[%clk 0:04:35.7]} 12... O-O
{[%clk 0:04:19.1]} 13. Bxf6 {[%clk 0:04:34.6]} 13... Bxf6 {[%clk 0:04:17]} 14.
Nd5 {[%clk 0:04:34.5]} 14... Qd8 {[%clk 0:04:13.1]} 15. g4 {[%clk 0:04:28.8]}
15... h6 {[%clk 0:04:10.2]} 16. Qf3 {[%clk 0:04:26.2]} 16... Nd4 {[%clk
0:04:04]} 17. Qg3 {[%clk 0:04:24.2]} 17... d6 {[%clk 0:03:49.7]} 18. c3 {[%clk
0:04:22.7]} 18... Nc6 {[%clk 0:03:42.7]} 19. h4 {[%clk 0:04:21.9]} 19... Bxh4
{[%clk 0:03:34]} 20. Qh3 {[%clk 0:04:21.1]} 20... Bg5 {[%clk 0:03:30.8]} 21. f6
{[%clk 0:04:17.6]} 21... gxf6 {[%clk 0:03:17.1]} 22. Rf2 {[%clk 0:04:03]} 22...
Kg7 {[%clk 0:03:07.4]} 23. Raf1 {[%clk 0:04:00.4]} 23... Be6 {[%clk 0:02:46.5]}
24. Nxf6 {[%clk 0:03:54.8]} 24... Bxf6 {[%clk 0:02:42.1]} 25. Rxf6 {[%clk
0:03:52.9]} 25... Rh8 {[%clk 0:02:28.4]} 26. Qh5 {[%clk 0:03:51]} 26... Qe7
{[%clk 0:02:13.7]} 27. Kg2 {[%clk 0:03:02.7]} 27... Raf8 {[%clk 0:02:02.7]} 28.
g5 {[%clk 0:02:56.9]} 28... Kg8 {[%clk 0:01:30.5]} 29. gxh6 {[%clk 0:02:43.2]}
29... Rh7 {[%clk 0:01:27.1]} 30. R1f3 {[%clk 0:02:04.7]} 30... Kh8 {[%clk
0:01:24.2]} 31. Kf2 {[%clk 0:01:58.3]} 31... Rg8 {[%clk 0:01:19.1]} 32. Bf1
{[%clk 0:01:47.8]} 32... Bg4 {[%clk 0:01:09.6]} 33. Rxf7 {[%clk 0:00:30.9]}
33... Bxh5 {[%clk 0:00:58.6]} 34. Rxe7 {[%clk 0:00:29.1]} 34... Rxe7 {[%clk
0:00:57.1]} 35. Rf6 {[%clk 0:00:18.4]} 35... Rf7 {[%clk 0:00:54.7]} 0-1

[Event "Live Chess"]
[Site "Chess.com"]
[Date "2024.06.02"]
[Round "-"]
[White "ACM42"]
[Black "GoldsmanB"]
[Result "1-0"]
[WhiteElo "2150"]
[BlackElo "1102"]
[TimeControl "300"]
[EndTime "2:42:11 PDT"]
[Termination "ACM42 won by resignation"]

1. e4 {[%clk 0:04:56.6]} 1... e6 {[%clk 0:04:57.6]} 2. d4 {[%clk 0:04:54.6]}
2... d5 {[%clk 0:04:56.9]} 3. Nc3 {[%clk 0:04:53.9]} 3... Bb4 {[%clk 0:04:54.2]}
4. e5 {[%clk 0:04:48.8]} 4... c5 {[%clk 0:04:50.7]} 5. a3 {[%clk 0:04:48.7]}
5... Bxc3+ {[%clk 0:04:48]} 6. bxc3 {[%clk 0:04:48.6]} 6... Ne7 {[%clk
0:04:45.4]} 7. Qg4 {[%clk 0:04:47.2]} 7... O-O {[%clk 0:04:43]} 8. Bd3 {[%clk
0:04:39]} 8... Nbc6 {[%clk 0:04:39.4]} 9. Bh6 {[%clk 0:04:34.4]} 9... Ng6 {[%clk
0:04:34.3]} 10. Bg5 {[%clk 0:04:29.6]} 10... Qe8 {[%clk 0:04:28.3]} 11. h4
{[%clk 0:04:26.5]} 11... cxd4 {[%clk 0:04:25.2]} 12. cxd4 {[%clk 0:04:24.8]}
12... Nh8 {[%clk 0:04:20.9]} 13. h5 {[%clk 0:04:16.5]} 13... h6 {[%clk
0:04:17.1]} 14. Bxh6 {[%clk 0:04:14.8]} 1-0

[Event "Live Chess"]
[Site "Chess.com"]
[Date "2024.06.02"]
[Round "-"]
[White "Ninifu"]
[Black "GwaryTek"]
[Result "1-0"]
[WhiteElo "2015"]
[BlackElo "1887"]
[TimeControl "300"]
[EndTime "2:42:14 PDT"]
[Termination "Ninifu won on time"]

1. d4 {[%clk 0:04:56.5]} 1... Nf6 {[%clk 0:04:59.9]} 2. c4 {[%clk 0:04:55]} 2...
d6 {[%clk 0:04:57.9]} 3. Nc3 {[%clk 0:04:54]} 3... Nbd7 {[%clk 0:04:57.6]} 4. e4
{[%clk 0:04:52.8]} 4... e5 {[%clk 0:04:57.1]} 5. Nf3 {[%clk 0:04:51.2]} 5... Be7
{[%clk 0:04:55.6]} 6. Be2 {[%clk 0:04:49.8]} 6... c6 {[%clk 0:04:54.8]} 7. O-O
{[%clk 0:04:48]} 7... O-O {[%clk 0:04:54.4]} 8. h3 {[%clk 0:04:46.3]} 8... a6
{[%clk 0:04:53.9]} 9. Be3 {[%clk 0:04:42.6]} 9... b5 {[%clk 0:04:52.4]} 10. c5
{[%clk 0:04:35.6]} 10... exd4 {[%clk 0:04:50.4]} 11. cxd6 {[%clk 0:04:30.9]}
11... dxe3 {[%clk 0:04:44.4]} 12. dxe7 {[%clk 0:04:29.3]} 12... exf2+ {[%clk
0:04:43.2]} 13. Rxf2 {[%clk 0:04:27.4]} 13... Qxe7 {[%clk 0:04:40.8]} 14. Qc2
{[%clk 0:03:46.1]} 14... Ne5 {[%clk 0:04:36.1]} 15. Rd1 {[%clk 0:03:33.5]} 15...
Bb7 {[%clk 0:04:32.4]} 16. Nxe5 {[%clk 0:03:23.1]} 16... Qxe5 {[%clk 0:04:30.9]}
17. Rf5 {[%clk 0:03:21.9]} 17... Qe7 {[%clk 0:04:21.5]} 18. Rdf1 {[%clk
0:03:21.1]} 18... b4 {[%clk 0:04:17.7]} 19. e5 {[%clk 0:03:17.9]} 19... bxc3
{[%clk 0:04:00.8]} 20. exf6 {[%clk 0:03:16.9]} 20... Qe3+ {[%clk 0:03:57.7]} 21.
Kh1 {[%clk 0:03:14]} 21... c5 {[%clk 0:03:54.3]} 22. Bf3 {[%clk 0:03:04.8]}
22... Bxf3 {[%clk 0:03:42.6]} 23. R1xf3 {[%clk 0:02:50.1]} 23... Qd2 {[%clk
0:03:13.7]} 24. Qxc3 {[%clk 0:02:45.8]} 24... Qxc3 {[%clk 0:03:12.3]} 25. Rxc3
{[%clk 0:02:43.1]} 25... gxf6 {[%clk 0:03:03.2]} 26. Rxf6 {[%clk 0:02:35.6]}
26... Rac8 {[%clk 0:02:54.7]} 27. Rf5 {[%clk 0:02:31.8]} 27... c4 {[%clk
0:02:51.9]} 28. Rf4 {[%clk 0:02:31]} 28... Rfe8 {[%clk 0:02:47.2]} 29. Rfxc4
{[%clk 0:02:27.7]} 29... Rxc4 {[%clk 0:02:42.6]} 30. Rxc4 {[%clk 0:02:26.6]}
30... Re1+ {[%clk 0:02:41.5]} 31. Kh2 {[%clk 0:02:25]} 31... Re2 {[%clk
0:02:40.3]} 32. Rb4 {[%clk 0:02:21]} 32... a5 {[%clk 0:02:38.6]} 33. Rb8+ {[%clk
0:02:13.5]} 33... Kg7 {[%clk 0:02:37.2]} 34. Ra8 {[%clk 0:02:04.1]} 34... Rxb2
{[%clk 0:02:34.8]} 35. Rxa5 {[%clk 0:02:03.4]} 35... Kf6 {[%clk 0:02:30.3]} 36.
a4 {[%clk 0:01:55.2]} 36... Ke6 {[%clk 0:02:27]} 37. Kg3 {[%clk 0:01:48.8]}
37... Rb3+ {[%clk 0:02:23.7]} 38. Kf4 {[%clk 0:01:45.1]} 38... h6 {[%clk
0:02:17.8]} 39. Ra6+ {[%clk 0:01:42.1]} 39... Kd5 {[%clk 0:02:12.7]} 40. Rxh6
{[%clk 0:01:37.4]} 40... Rb4+ {[%clk 0:02:10]} 41. Kf5 {[%clk 0:01:33.9]} 41...
Rxa4 {[%clk 0:02:09.2]} 42. h4 {[%clk 0:01:29.1]} 42... Ra2 {[%clk 0:01:49.8]}
43. g4 {[%clk 0:01:25.9]} 43... Rf2+ {[%clk 0:01:47.7]} 44. Kg5 {[%clk
0:01:24.3]} 44... Ke5 {[%clk 0:01:39.7]} 45. Rh8 {[%clk 0:01:20.9]} 45... f6+
{[%clk 0:01:28.5]} 46. Kg6 {[%clk 0:01:18.4]} 46... Kf4 {[%clk 0:01:27.9]} 47.
h5 {[%clk 0:00:59.3]} 47... Rg2 {[%clk 0:00:27.4]} 48. Kxf6 {[%clk 0:00:56.6]}
48... Rxg4 {[%clk 0:00:25.7]} 49. h6 {[%clk 0:00:55.8]} 49... Rh4 {[%clk
0:00:20.5]} 50. h7 {[%clk 0:00:52.6]} 50... Rh1 {[%clk 0:00:13]} 51. Ke6 {[%clk
0:00:22.7]} 51... Ke4 {[%clk 0:00:10.8]} 52. Kd6 {[%clk 0:00:19.3]} 52... Kd4
{[%clk 0:00:10]} 53. Ke7 {[%clk 0:00:16.2]} 53... Ke5 {[%clk 0:00:09.2]} 54. Kf7
{[%clk 0:00:12.7]} 54... Kf5 {[%clk 0:00:08.5]} 55. Kg7 {[%clk 0:00:11.6]} 55...
Kg5 {[%clk 0:00:05.9]} 56. Ra8 {[%clk 0:00:08.6]} 1-0